{"text_format":"1","workbook":"xlsx","n_sheets":5,"sheets":["ANEXO XII","Plan5583","INÍCIO","ANEXO IV","Ressalvas"],"not_rendered":{"charts":0,"images":1,"macros":1,"external_links":0,"defined_names":3,"comments":1,"pivot_tables":0},"unopened":[],"bounds":{"document_bytes":16777216,"sheet_cells":100000,"rows_first":2000,"rows_last":500,"rows_between":2000,"halvings":0,"cell_chars":16384,"cell_head_chars":4096},"cells_cut":0,"cells_raw":0,"read":"whole","date_system":"1900"}

{"sheet":"ANEXO XII","index":0,"n_rows":52,"n_cols":17,"rows_kept":52,"cut":false,"hidden":false,"merged":[[47,1,47,13],[48,1,48,13],[49,1,49,13],[51,1,51,13],[42,1,42,5],[42,6,42,13],[43,1,43,13],[44,1,44,13],[45,1,45,13],[46,1,46,13],[37,2,37,6],[37,7,37,8],[37,9,37,13],[38,2,38,6],[38,7,38,8],[38,9,38,13],[34,1,34,6],[34,7,34,13],[35,1,35,6],[35,7,35,13],[36,2,36,6],[36,7,36,8],[36,9,36,13],[30,1,30,2],[30,3,30,13],[32,1,32,6],[32,7,32,13],[33,1,33,6],[33,7,33,13],[27,1,27,3],[27,4,27,13],[28,1,28,4],[28,5,28,13],[29,1,29,5],[29,6,29,13],[26,1,26,2],[26,3,26,13],[19,1,20,1],[19,2,20,9],[19,10,19,13],[20,10,20,13],[21,1,21,13],[22,1,22,13],[23,1,23,13],[24,1,24,4],[24,5,24,13],[25,1,25,3],[25,4,25,13],[17,1,17,3],[18,1,18,3],[17,4,17,8],[18,4,18,8],[17,9,17,13],[18,9,18,13],[11,9,11,13],[15,1,15,5],[15,6,15,9],[15,10,15,13],[16,1,16,5],[16,6,16,9],[16,10,16,13],[1,2,2,13],[13,1,13,7],[13,8,13,10],[13,11,13,13],[14,1,14,7],[14,8,14,10],[14,11,14,13],[12,1,12,13],[3,2,3,13],[5,0,5,14],[6,0,6,14],[7,0,7,14],[8,0,8,14],[10,1,10,8],[10,9,10,13],[11,1,11,8]]}
[]
[null,null,"GOVERNO DO ESTADO DE SÃO PAULO"]
[]
[null,null,"SECRETARIA DE ESTADO DA EDUCAÇÃO"]
[]
["ANEXO XII - PORTARIA MTP Nº 1.467"]
["DE 02 DE JUNHO DE 2022"]
["DECLARAÇÃO DE TEMPO DE CONTRIBUIÇÃO PARA FINS DE"]
[" CONCESSÃO DE BENEFÍCIO OU EMISSÃO DE CTC PELO INSS "]
[]
[null,"ÓRGÃO EXPEDIDOR:",null,null,null,null,null,null,null,"CNPJ"]
[null,"xxx",null,null,null,null,null,null,null,"xxx"]
[null,"DADOS PESSOAIS"]
[null,"NOME DO FUNCIONÁRIO OU SERVIDOR:",null,null,null,null,null,null,"SEXO",null,null,"MATRÍCULA"]
[null,"xxx",null,null,null,null,null,null,"xxx",null,null,"xxx"]
[null,"RG",null,null,null,null,"ÓRGÃO EXPEDIDOR / UF",null,null,null,"DATA DE EXPEDIÇÃO"]
[null,"xxx",null,null,null,null,"xxx"]
[null,"CPF",null,null,"TÍTULO DE ELEITOR",null,null,null,null,"PIS / PASEP"]
[null,"xxx",null,null,null,null,null,null,null,"xxx"]
[null,"NOME DA MÃE","xxx",null,null,null,null,null,null,null,"DATA DE NASCIMENTO:"]
[null,null,null,null,null,null,null,null,null,null,"xxx"]
[null,"ENDEREÇO"]
[]
[null,"DADOS FUNCIONAIS"]
[null,"CARGO EM COMISSÃO / FUNÇÃO DE ADMISSÃO / CONTRATAÇÃO - EXERCIDO:",null,null,null,"xxx"]
[null,"Nº DA PORTARIA DE NOMEAÇÃO / ADMISSÃO / CONTRATAÇÃO:",null,null,"xxx"]
[null,"DATA DE PUBLICAÇÃO:",null,"xxx"]
[null,"DATA DE ENTRADA EM EXERCÍCIO:",null,null,"xxx"]
[null,"DATA DE ENCERRAMENTO / AFASTAMENTO:",null,null,null,"xxx"]
[null,"Nº DA PORTARIA DE EXONERAÇÃO / DEMISSÃO:",null,null,null,null,"xxx"]
[null,"DATA DE PUBLICAÇÃO:",null,"xxx"]
[]
[null,"RESPONSÁVEL PELAS INFORMAÇÕES",null,null,null,null,null,"VISTO DIRIGENTE DO ÓRGÃO DE PESSOAL"]
[null,null,null,null,null,null,null,null,null,null,null,null,null,null,null,null,"VISTO DIRIGENTE REGIONAL DE ENSINO"]
[null,null,null,null,null,null,null,null,null,null,null,null,null,null,null,null,"VISTO DIRETOR DO CEPAG"]
[null,null,null,null,null,null,null,null,null,null,null,null,null,null,null,null,"VISTO DIRETOR DO DEAPE"]
[null,"NOME:",null,null,null,null,null,"NOME:"]
[null,"MATRÍCULA / RE",null,null,null,null,null,"MATRÍCULA / RE"]
[null,"CARGO",null,null,null,null,null,"CARGO"]
[]
[]
[]
[null,"Endereço eletrônico para confirmação desta declaração:",null,null,null,null,"detaqnfp@educacao.sp.gov.br"]
[null,"OBSERVAÇÕES / OCORRÊNCIAS:"]
[]
[]
[]
[]
[]
[]
[]
[null,"ESTA DECLARAÇÃO NÃO CONTÉM EMENDAS NEM RASURAS"]

{"sheet":"Plan5583","index":1,"n_rows":2,"n_cols":15,"rows_kept":2,"cut":false,"hidden":true,"merged":[]}
["PROCESSO Nº:","NOME DO FUNCIONÁRIO OU SERVIDOR:","SEXO","MATRÍCULA","RG","ÓRGÃO EXPEDIDOR/UF","CPF:","PIS / PASEP","F1","F2","DATA DE NASCIMENTO:","CARGO EFETIVO / FUNÇÃO:","ÓRGÃO DE LOTAÇÃO:","FONTE DE INFORMAÇÃO:","PARA  APROVEITAMENTO JUNTO AO(A):"]
[{"$f":"IF(#REF!=\"\",\"\",#REF!)","v":{"$error":"#REF!"}},{"$f":"IF(#REF!=\"\",\"\",#REF!)","v":{"$error":"#REF!"}},{"$f":"IF(#REF!=\"\",\"\",#REF!)","v":{"$error":"#REF!"}},{"$f":"IF(#REF!=\"\",\"\",#REF!)","v":{"$error":"#REF!"}},{"$f":"IF(#REF!=\"\",\"\",#REF!)","v":{"$error":"#REF!"}},{"$f":"IF(#REF!=\"\",\"\",#REF!)","v":{"$error":"#REF!"}},{"$f":"IF(#REF!=\"\",\"\",#REF!)","v":{"$error":"#REF!"}},{"$f":"IF(#REF!=\"\",\"\",#REF!)","v":{"$error":"#REF!"}},{"$f":"IF(#REF!=\"\",\"\",#REF!)","v":{"$error":"#REF!"}},{"$f":"IF(#REF!=\"\",\"\",#REF!)","v":{"$error":"#REF!"}},{"$f":"IF(#REF!=\"\",\"\",#REF!)","v":{"$error":"#REF!"}},{"$f":"IF(#REF!=\"\",\"\",#REF!)","v":{"$error":"#REF!"}},{"$f":"IF(#REF!=\"\",\"\",#REF!)","v":{"$error":"#REF!"}},{"$f":"IF(#REF!=\"\",\"\",#REF!)","v":{"$error":"#REF!"}},{"$f":"IF(#REF!=\"\",\"\",#REF!)","v":{"$error":"#REF!"}}]

{"sheet":"INÍCIO","index":2,"n_rows":1,"n_cols":1,"rows_kept":1,"cut":false,"hidden":true,"merged":[[0,0,5,6]]}
["OLÁ, favor habilitar macros desta pasta de trabalho para prosseguir. Obrigado!"]

{"sheet":"ANEXO IV","index":3,"n_rows":53,"n_cols":19,"rows_kept":53,"cut":false,"hidden":true,"merged":[[35,5,35,7],[33,2,33,3],[33,4,33,14],[13,2,13,14],[14,2,14,14],[24,2,24,14],[23,2,23,14],[27,2,27,3],[27,4,27,14],[19,2,20,2],[19,3,20,10],[19,11,19,14],[20,11,20,14],[21,2,21,14],[22,2,22,14],[18,2,18,4],[51,2,51,14],[52,2,52,14],[25,11,25,14],[25,7,25,10],[26,3,26,14],[46,2,46,14],[49,2,50,14],[43,3,43,7],[43,8,43,9],[43,10,43,14],[44,3,44,7],[44,8,44,9],[44,10,44,14],[40,2,40,7],[40,8,40,14],[47,2,48,14],[41,2,41,7],[41,8,41,14],[42,3,42,7],[42,8,42,9],[42,10,42,14],[39,2,39,7],[39,8,39,14],[35,11,35,12],[28,4,28,8],[28,9,28,10],[28,11,28,14],[29,2,29,14],[30,2,30,3],[30,4,30,14],[28,2,28,3],[31,2,31,14],[32,3,32,6],[32,8,32,11],[37,8,38,14],[37,2,38,7],[34,2,34,14],[17,5,17,9],[17,10,17,14],[18,5,18,9],[18,10,18,14],[17,2,17,4],[15,2,15,6],[15,7,15,10],[15,11,15,14],[16,2,16,6],[16,7,16,10],[16,11,16,14],[12,2,12,14],[1,3,1,14],[2,3,2,14],[3,3,3,14],[5,1,5,15],[6,1,6,15],[7,1,7,15],[8,1,8,15],[10,2,10,9],[10,10,10,14],[11,2,11,9],[11,10,11,14]]}
[]
[null,null,null,"GOVERNO DO ESTADO DE SÃO PAULO",null,null,null,null,null,null,null,null,null,null,null,null,null,null,"X"]
[null,null,null,"S E C R E T A R I A    D E    E S T A D O    D A     E D U C A Ç Ã O"]
[null,null,null,{"$f":"IF(OR(#REF!=\"\",AND(#REF!<>\"Coordenadoria de Gestão de Recursos Humanos\",#REF!<>\"Conselho Estadual de Educação\",#REF!=\"\")),\"\",IF(OR(#REF!=\"Coordenadoria de Gestão de Recursos Humanos\",#REF!=\"Conselho Estadual de Educação\"),#REF!,CONCATENATE(#REF!,\" \",#REF!)))","v":{"$error":"#REF!"}}]
[]
[null,"                                                                                ANEXO IV  (Incluído pela Portaria MF nº 567, de 18/12/2017)"]
[]
[null,"DECLARAÇÃO DE TEMPO DE CONTRIBUIÇÃO AO RPPS"]
[null,"PARA APLICAÇÃO DE ACORDOS INTERNACIONAIS DE PREVIDÊNCIA SOCIAL"]
[]
[null,null,"ÓRGÃO EXPEDIDOR:",null,null,null,null,null,null,null,"CNPJ"]
[null,null,{"$f":"IF(OR(#REF!=\"\",AND(#REF!<>\"Coordenadoria de Gestão de Recursos Humanos\",#REF!<>\"Conselho Estadual de Educação\",#REF!=\"\")),\"\",IF(OR(#REF!=\"Coordenadoria de Gestão de Recursos Humanos\",#REF!=\"Conselho Estadual de Educação\"),#REF!,CONCATENATE(#REF!,\" \",#REF!)))","v":{"$error":"#REF!"}},null,null,null,null,null,null,null,{"$f":"IF(#REF!=\"\",\"\",#REF!)","v":{"$error":"#REF!"}}]
[null,null,"DADOS PESSOAIS"]
[null,null,"NOME DO FUNCIONÁRIO OU SERVIDOR:"]
[null,null,{"$f":"IF(#REF!=\"\",\"\",#REF!)","v":{"$error":"#REF!"}}]
[null,null,"RG",null,null,null,null,"ÓRGÃO EXPEDIDOR",null,null,null,"DATA DE EXPEDIÇÃO"]
[]
[null,null,"CPF",null,null,"TÍTULO DE ELEITOR",null,null,null,null,"PIS / PASEP"]
[null,null,{"$f":"IF(#REF!=\"\",\"\",#REF!)","v":{"$error":"#REF!"}},null,null,null,null,null,null,null,{"$f":"IF(#REF!=\"\",\"\",#REF!)","v":{"$error":"#REF!"}}]
[null,null,"NOME DA MÃE",{"$f":"IF(#REF!=\"\",\"\",#REF!)","v":{"$error":"#REF!"}},null,null,null,null,null,null,null,"DATA DE NASCIMENTO:"]
[null,null,null,null,null,null,null,null,null,null,null,{"$f":"IF(#REF!=\"\",\"\",#REF!)","v":{"$error":"#REF!"}}]
[null,null,"ENDEREÇO"]
[null,null,{"$f":"IF(#REF!=\"\",\"\",#REF!)","v":{"$error":"#REF!"}}]
[null,null,"DADOS FUNCIONAIS"]
[]
[null,null,"APOSENTADO:",null,"NÃO",null,"SIM","DATA DA APOSENTADORIA:"]
[null,null,"CARGO EFETIVO:"]
[null,null,"ÓRGÃO DE LOTAÇÃO:"]
[null,null,"DATA DE ADMISSÃO:",null,null,null,null,null,null,"MATRÍCULA:",null,{"$f":"IF(#REF!=\"\",\"\",#REF!)","v":{"$error":"#REF!"}}]
[null,null,"DADOS DO BENEFÍCIO"]
[null,null,"BENEFÍCIO A SER REQUERIDO:"]
[null,null,"PERÍODO DE CONTRIBUIÇÃO AO RPPS"]
[null,null,"DE",{"$f":"IF(#REF!=\"\",\"\",#REF!)","v":{"$error":"#REF!"}},null,null,null,"A",{"$f":"IF(#REF!=\"\",\"\",#REF!)","v":{"$error":"#REF!"}}]
[null,null,"FONTE DE INFORMAÇÃO:"]
[null,null,"DECLARO, que até a presente data o servidor conta, de efetivo exercício prestado neste Órgão o tempo líquido"]
[null,null,"    de contribuição de",null,{"$f":"IF(#REF!<>\"XXXX\",#REF!,IF(#REF!<>\"XXXX\",#REF!,IF(#REF!<>\"XXXX\",#REF!,IF(#REF!<>\"XXXX\",#REF!,IF(#REF!<>\"XXXX\",#REF!,IF(#REF!<>\"XXXX\",#REF!,\"XXXX\"))))))","v":{"$error":"#REF!"}},"dias, correspondente a",null,null,{"$f":"IF(OR(E36=\"XXXX\",E36=\"\",E36=0),\"XXXX\",IF(QUOTIENT(E36-((QUOTIENT(E36,365))*365),30)=12,SUM(QUOTIENT(E36,365),1),QUOTIENT(E36,365)))","v":{"$error":"#REF!"}},"ano(s)",{"$f":"IF(OR(E36=\"XXXX\",E36=\"\",E36=0),\"XXXX\",IF(QUOTIENT((E36-((QUOTIENT(E36,365))*365)),30)=12,0,QUOTIENT(E36-((QUOTIENT(E36,365))*365),30)))","v":{"$error":"#REF!"}},"mes(es) e",null,{"$f":"IF(OR(E36=\"XXXX\",E36=\"\",E36=0),\"XXXX\",(E36-((QUOTIENT(E36,365))*365))-(QUOTIENT(E36-((QUOTIENT(E36,365))*365),30)*30))","v":{"$error":"#REF!"}},"dia(s)."]
[]
[null,null,"Lavrei esta Declaração, que não contém emendas nem rasuras.",null,null,null,null,null,"Visto do Dirigente Regional de Ensino"]
[]
[null,null,null,null,null,null,null,null,null,null,null,null,null,null,null,null,null,"VISTO DIRIGENTE REGIONAL DE ENSINO"]
[null,null,null,null,null,null,null,null,null,null,null,null,null,null,null,null,null,"VISTO DIRETOR DO CEPAG"]
[null,null,"Assinatura e carimbo do servidor",null,null,null,null,null,"Assinatura e carimbo do servidor",null,null,null,null,null,null,null,null,"VISTO DIRETOR DO DEAPE"]
[null,null,"NOME:",null,null,null,null,null,"NOME:"]
[null,null,"MATRÍCULA",null,null,null,null,null,"MATRÍCULA"]
[null,null,"CARGO",null,null,null,null,null,"CARGO"]
[]
[null,null,"OBSERVAÇÕES / OCORRÊNCIAS:"]
[]
[]
[null,null,"        HOMOLOGO a presente Certidão de Tempo de Contribuição e declaro que as informações nela constantes correspondem com a verdade."]
[]
[]
[null,null,"Local e data:___________________                                                                                  Assinatura e carimbo do Dirigente da UG"]

{"sheet":"Ressalvas","index":4,"n_rows":8,"n_cols":4,"rows_kept":8,"cut":false,"hidden":true,"merged":[]}
["COD","Ressalvas","TEXTO","TIPO"]
[1,"Ativo Judicial",{"$f":"\"Servidor ativo - CTC Homologada por ordem judicial (\"&IF(#REF!=\"\",\"XXXX NÚMERO DO PROCESSO FALTANDO XXXX\",\"processo nº \"&#REF!)&\") e sujeita à revisão das vantagens funcionais e ao cumprimento dos critérios legais da compensação previdenciária.\"","v":{"$error":"#REF!"}},"JUDICIAL"]
[2,"Ativo-Judicial-Transitada em Julgado",{"$f":"\"Servidor ativo - CTC Homologada por ordem judicial transitada em julgado (\"&IF(#REF!=\"\",\"XXXX NÚMERO DO PROCESSO FALTANDO XXXX\",\"processo nº \"&#REF!)&\") e sujeita à revisão das vantagens funcionais e ao cumprimento dos critérios legais da compensação previdenciária.\"","v":{"$error":"#REF!"}},"JUDICIAL"]
[3,"Falecido-Judicial-Pensão por Morte",{"$f":"\"Ex-servidor falecido - CTC Homologada por ordem judicial (\"&IF(#REF!=\"\",\"XXXX NÚMERO DO PROCESSO FALTANDO XXXX\",\"processo nº \"&#REF!)&\") destinada à pensão por morte e não sujeita à compensação previdenciária.\"","v":{"$error":"#REF!"}},"JUDICIAL"]
[4,"Falecido-Adm-Pensão por Morte",{"$f":"\"Ex-servidor falecido - CTC Homologada destinada à pensão por morte e não sujeita à compensação previdenciária.\"","v":"Ex-servidor falecido - CTC Homologada destinada à pensão por morte e não sujeita à compensação previdenciária."},"ADM"]
[5,"Cassação de Aposentadoria-Adm",{"$f":"\"Servidor teve aposentadoria cassada. CTC poderá ser cancelada se sobrevier decisão judicial que reverta a cassação, hipótese em que não haverá compensação previdenciária.\"","v":"Servidor teve aposentadoria cassada. CTC poderá ser cancelada se sobrevier decisão judicial que reverta a cassação, hipótese em que não haverá compensação previdenciária."},"ADM"]
[6,"Demissão-Adm",{"$f":"\"Servidor demitido - CTC poderá ser cancelada se sobrevier decisão judicial que determine a reintegração, hipótese em que não haverá compensação previdenciária.\"","v":"Servidor demitido - CTC poderá ser cancelada se sobrevier decisão judicial que determine a reintegração, hipótese em que não haverá compensação previdenciária."},"ADM"]
[7,"Tempo Especial-Judicial",{"$f":"\"Tempo especial - CTC homologada por decisão judicial (\"&IF(#REF!=\"\",\"XXXX NÚMERO DO PROCESSO FALTANDO XXXX\",\"processo nº \"&#REF!)&\"). Compensação previdenciária relativa ao período ficto sujeita a análise da área competente.\"","v":{"$error":"#REF!"}},"JUDICIAL"]